[Event "Early-Titled-Tuesday-Blitz-October-03-2023"]
[Site "Chess.com"]
[Date "2023.10.03"]
[Round "4"]
[White "RichardLeyvaP"]
[Black "Vladimir_Zakhartsov"]
[Result "0-1"]
[WhiteElo "2591"]
[BlackElo "2828"]
[TimeControl "180+1"]
[EndTime "8:40:48 PDT"]
[Termination "Vladimir_Zakhartsov won on time"]

1. e4 {[%clk 0:02:58.2]} 1... c6 {[%clk 0:02:58.6]} 2. d4 {[%clk 0:02:58.2]}
2... d5 {[%clk 0:02:58.9]} 3. e5 {[%clk 0:02:58.9]} 3... Bf5 {[%clk 0:02:58.7]}
4. Nc3 {[%clk 0:02:58.7]} 4... e6 {[%clk 0:02:44]} 5. g4 {[%clk 0:02:57.9]} 5...
Bg6 {[%clk 0:02:44.4]} 6. Nge2 {[%clk 0:02:58.3]} 6... c5 {[%clk 0:02:39.7]} 7.
h4 {[%clk 0:02:56.9]} 7... cxd4 {[%clk 0:02:37.2]} 8. Nxd4 {[%clk 0:02:55.4]}
8... h5 {[%clk 0:02:34.7]} 9. f4 {[%clk 0:02:52.3]} 9... hxg4 {[%clk 0:02:30.3]}
10. f5 {[%clk 0:02:49.4]} 10... Rxh4 {[%clk 0:02:13]} 11. Bb5+ {[%clk 0:02:49]}
11... Nd7 {[%clk 0:02:12]} 12. O-O {[%clk 0:02:49.2]} 12... exf5 {[%clk
0:01:54.9]} 13. e6 {[%clk 0:02:37.2]} 13... fxe6 {[%clk 0:01:51.3]} 14. Nxe6
{[%clk 0:02:37.5]} 14... Qb6+ {[%clk 0:01:51.2]} 15. Kg2 {[%clk 0:02:38]} 15...
Nf6 {[%clk 0:01:41.2]} 16. Nxd5 {[%clk 0:02:36]} 16... Nxd5 {[%clk 0:01:31.8]}
17. Qxd5 {[%clk 0:02:35.4]} 17... Qd6 {[%clk 0:01:05.3]} 18. Qxd6 {[%clk
0:01:18.3]} 18... Bxd6 {[%clk 0:01:05.4]} 19. Bf4 {[%clk 0:01:08.4]} 19... Bxf4
{[%clk 0:00:28.1]} 20. Nxf4 {[%clk 0:01:08.3]} 20... Bf7 {[%clk 0:00:18.5]} 21.
Rfe1+ {[%clk 0:01:06.1]} 21... Kf8 {[%clk 0:00:10]} 22. Bxd7 {[%clk 0:01:06.2]}
22... Rd8 {[%clk 0:00:09.7]} 23. Bxf5 {[%clk 0:00:57.1]} 23... Rd2+ {[%clk
0:00:08.3]} 24. Kg3 {[%clk 0:00:45.7]} 24... g5 {[%clk 0:00:08.1]} 25. Bxg4
{[%clk 0:00:46]} 25... Rxg4+ {[%clk 0:00:07.2]} 26. Kxg4 {[%clk 0:00:45.1]}
26... gxf4 {[%clk 0:00:08]} 27. Rf1 {[%clk 0:00:38.1]} 27... Rxc2 {[%clk
0:00:08.1]} 28. Rxf4 {[%clk 0:00:38.2]} 28... Ke7 {[%clk 0:00:08]} 29. Re1+
{[%clk 0:00:37.7]} 29... Be6+ {[%clk 0:00:08.6]} 30. Kh4 {[%clk 0:00:34.1]}
30... Rxb2 {[%clk 0:00:08.9]} 31. Rfe4 {[%clk 0:00:34.1]} 31... Rb6 {[%clk
0:00:09.6]} 32. Kg5 {[%clk 0:00:33.6]} 32... Ra6 {[%clk 0:00:08.8]} 33. a4
{[%clk 0:00:31.4]} 33... Ra5+ {[%clk 0:00:08]} 34. Kg6 {[%clk 0:00:30.9]} 34...
Ra6 {[%clk 0:00:08.4]} 35. Kg7 {[%clk 0:00:31.1]} 35... Rd6 {[%clk 0:00:08.4]}
36. Re5 {[%clk 0:00:29.6]} 36... Kd7 {[%clk 0:00:08.6]} 37. Rb1 {[%clk
0:00:27.5]} 37... b6 {[%clk 0:00:08.9]} 38. Kf8 {[%clk 0:00:26.1]} 38... Bc4
{[%clk 0:00:07.9]} 39. Rc1 {[%clk 0:00:22.3]} 39... Be6 {[%clk 0:00:06.4]} 40.
Rh5 {[%clk 0:00:20.7]} 40... Rd4 {[%clk 0:00:04.8]} 41. Rh7+ {[%clk 0:00:18.1]}
41... Kd6 {[%clk 0:00:05.4]} 42. Rh6 {[%clk 0:00:18.7]} 42... Rf4+ {[%clk
0:00:05.4]} 43. Ke8 {[%clk 0:00:18.9]} 43... Re4 {[%clk 0:00:04.4]} 44. Rd1+
{[%clk 0:00:19]} 44... Kc5 {[%clk 0:00:03.9]} 45. Kd8 {[%clk 0:00:18.8]} 45...
Bc4 {[%clk 0:00:03.1]} 46. Rc1 {[%clk 0:00:18.6]} 46... Kb4 {[%clk 0:00:03.3]}
47. Rh7 {[%clk 0:00:10]} 47... a5 {[%clk 0:00:03.3]} 48. Rh6 {[%clk 0:00:08.2]}
48... Be6 {[%clk 0:00:02.7]} 49. Rb1+ {[%clk 0:00:05.7]} 49... Kxa4 {[%clk
0:00:02.2]} 50. Rxb6 {[%clk 0:00:05.9]} 50... Bb3 {[%clk 0:00:02.4]} 51. Rhd6
{[%clk 0:00:02.4]} 51... Rh4 {[%clk 0:00:02.4]} 52. Kc7 {[%clk 0:00:02.5]} 52...
Ka3 {[%clk 0:00:02.9]} 53. Rbc6 {[%clk 0:00:02.1]} 53... a4 {[%clk 0:00:03.5]}
54. Rd3 {[%clk 0:00:02.5]} 54... Rh7+ {[%clk 0:00:03.7]} 55. Kb6 {[%clk
0:00:02.5]} 55... Kb2 {[%clk 0:00:03.9]} 56. Rd2+ {[%clk 0:00:02.6]} 56... Ka3
{[%clk 0:00:03.4]} 57. Rd3 {[%clk 0:00:02.9]} 57... Rh2 {[%clk 0:00:03.4]} 58.
Re3 {[%clk 0:00:02.7]} 58... Kb2 {[%clk 0:00:03.8]} 59. Ka5 {[%clk 0:00:02.1]}
59... a3 {[%clk 0:00:04.2]} 60. Rb6 {[%clk 0:00:02.6]} 60... Rh5+ {[%clk
0:00:04]} 61. Ka6 {[%clk 0:00:02]} 61... a2 {[%clk 0:00:03.3]} 62. Rexb3+ {[%clk
0:00:02.3]} 62... Ka1 {[%clk 0:00:03.7]} 0-1

[Event "Early-Titled-Tuesday-Blitz-October-03-2023"]
[Site "Chess.com"]
[Date "2023.10.03"]
[Round "4"]
[White "themind1hunter"]
[Black "javierfreilemartin"]
[Result "1-0"]
[WhiteElo "2548"]
[BlackElo "2321"]
[TimeControl "180+1"]
[EndTime "8:40:48 PDT"]
[Termination "themind1hunter won by checkmate"]

1. e4 {[%clk 0:02:50.9]} 1... c5 {[%clk 0:02:59.6]} 2. Nf3 {[%clk 0:02:50]} 2...
d6 {[%clk 0:02:59.6]} 3. d4 {[%clk 0:02:49.8]} 3... cxd4 {[%clk 0:02:59.8]} 4.
Nxd4 {[%clk 0:02:50.7]} 4... Nf6 {[%clk 0:02:59.2]} 5. Nc3 {[%clk 0:02:51.4]}
5... a6 {[%clk 0:02:59.5]} 6. Be3 {[%clk 0:02:51]} 6... e5 {[%clk 0:02:57.1]} 7.
Nb3 {[%clk 0:02:50.6]} 7... Be6 {[%clk 0:02:57.3]} 8. Qd2 {[%clk 0:02:50.3]}
8... Nbd7 {[%clk 0:02:57]} 9. O-O-O {[%clk 0:02:49.4]} 9... Rc8 {[%clk
0:02:57.2]} 10. Kb1 {[%clk 0:02:48.7]} 10... Be7 {[%clk 0:02:38.5]} 11. h3
{[%clk 0:02:41.9]} 11... O-O {[%clk 0:02:35.6]} 12. g4 {[%clk 0:02:39.5]} 12...
Rxc3 {[%clk 0:02:34.1]} 13. Qxc3 {[%clk 0:02:38]} 13... Nxe4 {[%clk 0:02:33.4]}
14. Qb4 {[%clk 0:02:18.2]} 14... d5 {[%clk 0:02:32.5]} 15. Qxb7 {[%clk
0:02:17.9]} 15... a5 {[%clk 0:02:21.2]} 16. Rxd5 {[%clk 0:01:42.4]} 16... Bxd5
{[%clk 0:02:12.5]} 17. Qxd5 {[%clk 0:01:40.8]} 17... Ndf6 {[%clk 0:01:58.4]} 18.
Qxd8 {[%clk 0:01:36.2]} 18... Rxd8 {[%clk 0:01:56.9]} 19. Bd3 {[%clk 0:01:26.1]}
19... a4 {[%clk 0:01:55.2]} 20. Na5 {[%clk 0:01:17.7]} 20... Bc5 {[%clk
0:01:43.6]} 21. Nb7 {[%clk 0:00:59.6]} 21... Rc8 {[%clk 0:01:22.6]} 22. Nxc5
{[%clk 0:00:57.9]} 22... Nxc5 {[%clk 0:01:21.8]} 23. Bxc5 {[%clk 0:00:55.5]}
23... Rxc5 {[%clk 0:01:21]} 24. Re1 {[%clk 0:00:54.8]} 24... h6 {[%clk
0:01:15.7]} 25. b4 {[%clk 0:00:40.1]} 25... Rd5 {[%clk 0:01:07.4]} 26. a3 {[%clk
0:00:35]} 26... Kf8 {[%clk 0:01:05]} 27. Kb2 {[%clk 0:00:33.1]} 27... Nd7 {[%clk
0:00:55.2]} 28. Re3 {[%clk 0:00:29.3]} 28... Rd4 {[%clk 0:00:53.5]} 29. c4
{[%clk 0:00:25.3]} 29... f6 {[%clk 0:00:52]} 30. Kc3 {[%clk 0:00:24.8]} 30...
Ke7 {[%clk 0:00:48.9]} 31. Bc2 {[%clk 0:00:22.3]} 31... Nb6 {[%clk 0:00:47]} 32.
Bd3 {[%clk 0:00:22.1]} 32... Rf4 {[%clk 0:00:45.2]} 33. f3 {[%clk 0:00:20.4]}
33... Ke6 {[%clk 0:00:43.7]} 34. Be2 {[%clk 0:00:14]} 34... Rd4 {[%clk
0:00:35.1]} 35. Re4 {[%clk 0:00:13.6]} 35... Rd8 {[%clk 0:00:27.5]} 36. f4
{[%clk 0:00:13.3]} 36... g5 {[%clk 0:00:25.6]} 37. f5+ {[%clk 0:00:13]} 37...
Ke7 {[%clk 0:00:25]} 38. Bd3 {[%clk 0:00:10.4]} 38... Rc8 {[%clk 0:00:24.9]} 39.
Kd2 {[%clk 0:00:09.6]} 39... Rd8 {[%clk 0:00:24.5]} 40. Ke2 {[%clk 0:00:05.3]}
40... Rd7 {[%clk 0:00:22.6]} 41. Ke3 {[%clk 0:00:03.4]} 41... Rd8 {[%clk
0:00:22.7]} 42. Kd2 {[%clk 0:00:02.1]} 42... Ra8 {[%clk 0:00:22.3]} 43. c5
{[%clk 0:00:01.5]} 43... Nd5 {[%clk 0:00:21.4]} 44. Bc4 {[%clk 0:00:01.2]} 44...
Nf4 {[%clk 0:00:20.2]} 45. Re3 {[%clk 0:00:01.6]} 45... Rd8+ {[%clk 0:00:20]}
46. Kc2 {[%clk 0:00:02.2]} 46... Ng2 {[%clk 0:00:19.4]} 47. Re2 {[%clk
0:00:02.2]} 47... Nf4 {[%clk 0:00:18.5]} 48. Rd2 {[%clk 0:00:02.7]} 48... Rxd2+
{[%clk 0:00:17.5]} 49. Kxd2 {[%clk 0:00:03.6]} 49... Nxh3 {[%clk 0:00:17.6]} 50.
Ke3 {[%clk 0:00:04.3]} 50... Nf4 {[%clk 0:00:16.6]} 51. b5 {[%clk 0:00:04.2]}
51... h5 {[%clk 0:00:15.3]} 52. gxh5 {[%clk 0:00:04]} 52... Nxh5 {[%clk
0:00:14.8]} 53. b6 {[%clk 0:00:04.2]} 53... Kd7 {[%clk 0:00:14.8]} 54. Bb5+
{[%clk 0:00:04.7]} 54... Kc8 {[%clk 0:00:14.3]} 55. c6 {[%clk 0:00:05.5]} 55...
Nf4 {[%clk 0:00:13.3]} 56. Ba6+ {[%clk 0:00:05.7]} 56... Kb8 {[%clk 0:00:13]}
57. c7+ {[%clk 0:00:06.1]} 57... Ka8 {[%clk 0:00:11.2]} 58. c8=Q# {[%clk
0:00:06.8]} 1-0

[Event "Early-Titled-Tuesday-Blitz-October-03-2023"]
[Site "Chess.com"]
[Date "2023.10.03"]
[Round "4"]
[White "curradogianfigliazzi"]
[Black "Juicy_Fork"]
[Result "1/2-1/2"]
[WhiteElo "2264"]
[BlackElo "2462"]
[TimeControl "180+1"]
[EndTime "8:40:51 PDT"]
[Termination "Game drawn by repetition"]

1. e4 {[%clk 0:02:51.3]} 1... e5 {[%clk 0:02:59.9]} 2. Nf3 {[%clk 0:02:48.6]}
2... Nc6 {[%clk 0:02:59.4]} 3. Bb5 {[%clk 0:02:49.2]} 3... a6 {[%clk 0:02:58.8]}
4. Ba4 {[%clk 0:02:49.5]} 4... d6 {[%clk 0:02:59.1]} 5. d3 {[%clk 0:02:49.3]}
5... Bd7 {[%clk 0:02:59.2]} 6. O-O {[%clk 0:02:49]} 6... g6 {[%clk 0:02:59.2]}
7. c4 {[%clk 0:02:47.4]} 7... Bg7 {[%clk 0:02:58.9]} 8. Nc3 {[%clk 0:02:47.5]}
8... Nge7 {[%clk 0:02:56.9]} 9. Be3 {[%clk 0:02:46.7]} 9... Nd4 {[%clk
0:02:54.5]} 10. Bxd7+ {[%clk 0:02:44.5]} 10... Qxd7 {[%clk 0:02:54.4]} 11. Bxd4
{[%clk 0:02:44.4]} 11... exd4 {[%clk 0:02:54.1]} 12. Nd5 {[%clk 0:02:42]} 12...
O-O {[%clk 0:02:51.7]} 13. Nxe7+ {[%clk 0:02:30]} 13... Qxe7 {[%clk 0:02:52.6]}
14. Re1 {[%clk 0:02:30.3]} 14... b5 {[%clk 0:02:49.2]} 15. cxb5 {[%clk
0:02:25.1]} 15... axb5 {[%clk 0:02:50.1]} 16. a4 {[%clk 0:02:25]} 16... bxa4
{[%clk 0:02:37.1]} 17. Rxa4 {[%clk 0:02:25.9]} 17... Rab8 {[%clk 0:02:37.3]} 18.
b4 {[%clk 0:02:23]} 18... c5 {[%clk 0:02:34.1]} 19. bxc5 {[%clk 0:02:21.5]}
19... dxc5 {[%clk 0:02:35]} 20. Nd2 {[%clk 0:02:20.7]} 20... Rb4 {[%clk
0:02:26.4]} 21. Rxb4 {[%clk 0:02:18.8]} 21... cxb4 {[%clk 0:02:27.3]} 22. Nc4
{[%clk 0:02:15.6]} 22... Ra8 {[%clk 0:02:23.6]} 23. Qb3 {[%clk 0:02:14.5]} 23...
Bf8 {[%clk 0:02:22.7]} 24. Qb2 {[%clk 0:02:12.4]} 24... Qc5 {[%clk 0:02:21.6]}
25. Rc1 {[%clk 0:01:50.9]} 25... Bg7 {[%clk 0:02:14.8]} 26. Ra1 {[%clk 0:01:25]}
26... Rxa1+ {[%clk 0:02:10.6]} 27. Qxa1 {[%clk 0:01:25.9]} 27... h5 {[%clk
0:02:08.7]} 28. Qa4 {[%clk 0:01:21.3]} 28... Bf8 {[%clk 0:02:05.9]} 29. h4
{[%clk 0:01:18.6]} 29... Qe7 {[%clk 0:01:58.7]} 30. g3 {[%clk 0:01:17.4]} 30...
Qb7 {[%clk 0:01:58.8]} 31. Qb3 {[%clk 0:01:14.8]} 31... Qa6 {[%clk 0:01:57.5]}
32. Kg2 {[%clk 0:01:11.6]} 32... Kg7 {[%clk 0:01:47.8]} 33. Ne5 {[%clk
0:01:06.7]} 33... Qe6 {[%clk 0:01:47.3]} 34. Nc4 {[%clk 0:01:04.5]} 34... Be7
{[%clk 0:01:42.1]} 35. Qb2 {[%clk 0:01:04.4]} 35... Bc5 {[%clk 0:01:31.6]} 36.
Qb3 {[%clk 0:00:59]} 36... f6 {[%clk 0:01:24.8]} 37. Qa4 {[%clk 0:00:58.8]}
37... f5 {[%clk 0:01:14.4]} 38. Qb5 {[%clk 0:00:53.7]} 38... Be7 {[%clk
0:01:08.6]} 39. exf5 {[%clk 0:00:50.8]} 39... gxf5 {[%clk 0:00:55.8]} 40. Qb8
{[%clk 0:00:44.4]} 40... Qd5+ {[%clk 0:00:47.6]} 41. f3 {[%clk 0:00:37.9]} 41...
Qe6 {[%clk 0:00:43.6]} 42. Kf2 {[%clk 0:00:31.5]} 42... Qf6 {[%clk 0:00:27.1]}
43. Qb7 {[%clk 0:00:20.5]} 43... Qe6 {[%clk 0:00:23.9]} 44. Qb8 {[%clk
0:00:20.1]} 44... Qa6 {[%clk 0:00:23.7]} 45. Qe5+ {[%clk 0:00:19.5]} 45... Bf6
{[%clk 0:00:22.4]} 46. Qc7+ {[%clk 0:00:19.6]} 46... Kg6 {[%clk 0:00:20.6]} 47.
Qf4 {[%clk 0:00:09.9]} 47... b3 {[%clk 0:00:19.3]} 48. Ne5+ {[%clk 0:00:09]}
48... Bxe5 {[%clk 0:00:18.9]} 49. Qxe5 {[%clk 0:00:09.9]} 49... Qa2+ {[%clk
0:00:13]} 50. Kg1 {[%clk 0:00:09.8]} 50... Qb1+ {[%clk 0:00:11.2]} 51. Kh2
{[%clk 0:00:10.2]} 51... Qc2+ {[%clk 0:00:11.2]} 52. Kh3 {[%clk 0:00:10.6]}
52... Qc8 {[%clk 0:00:09.8]} 53. Qxd4 {[%clk 0:00:09.3]} 53... f4+ {[%clk
0:00:09.3]} 54. Kg2 {[%clk 0:00:08.5]} 54... Qc2+ {[%clk 0:00:08.9]} 55. Kh3
{[%clk 0:00:08.9]} 55... b2 {[%clk 0:00:07.2]} 56. Qd6+ {[%clk 0:00:08.3]} 56...
Kf7 {[%clk 0:00:06.6]} 57. Qd7+ {[%clk 0:00:08.5]} 57... Kf6 {[%clk 0:00:06.8]}
58. Qd6+ {[%clk 0:00:08.8]} 58... Kf5 {[%clk 0:00:07]} 59. Qd5+ {[%clk
0:00:09.3]} 59... Kf6 {[%clk 0:00:07.4]} 60. Qd6+ {[%clk 0:00:09.9]} 60... Kg7
{[%clk 0:00:08]} 61. Qe7+ {[%clk 0:00:10.1]} 61... Kg6 {[%clk 0:00:08.4]} 62.
Qe6+ {[%clk 0:00:10.5]} 62... Kh7 {[%clk 0:00:08.7]} 63. Qf7+ {[%clk 0:00:10.9]}
63... Kh6 {[%clk 0:00:09.4]} 64. Qf6+ {[%clk 0:00:11.4]} 64... Kh7 {[%clk
0:00:09.8]} 65. Qf7+ {[%clk 0:00:12]} 65... Kh8 {[%clk 0:00:10.4]} 66. Qf8+
{[%clk 0:00:12.4]} 66... Kh7 {[%clk 0:00:11.1]} 67. Qf7+ {[%clk 0:00:13]}
1/2-1/2

[Event "Early-Titled-Tuesday-Blitz-October-03-2023"]
[Site "Chess.com"]
[Date "2023.10.03"]
[Round "4"]
[White "elmusmolamas"]
[Black "LeoWin2012"]
[Result "1-0"]
[WhiteElo "2497"]
[BlackElo "2297"]
[TimeControl "180+1"]
[EndTime "8:40:55 PDT"]
[Termination "elmusmolamas won by checkmate"]

1. e4 {[%clk 0:03:00.9]} 1... c6 {[%clk 0:02:59.4]} 2. d4 {[%clk 0:02:58.5]}
2... d5 {[%clk 0:02:59.6]} 3. exd5 {[%clk 0:02:59.4]} 3... cxd5 {[%clk
0:03:00.2]} 4. Bd3 {[%clk 0:02:59.5]} 4... Nc6 {[%clk 0:02:59.7]} 5. c3 {[%clk
0:02:59.5]} 5... Nf6 {[%clk 0:02:55.6]} 6. Bf4 {[%clk 0:02:58.7]} 6... g6 {[%clk
0:02:55.3]} 7. Nf3 {[%clk 0:02:56.4]} 7... Bg7 {[%clk 0:02:55.1]} 8. O-O {[%clk
0:02:56.8]} 8... O-O {[%clk 0:02:50.2]} 9. Re1 {[%clk 0:02:57.5]} 9... Bf5
{[%clk 0:02:49.4]} 10. Qe2 {[%clk 0:02:48.3]} 10... Bxd3 {[%clk 0:02:39.3]} 11.
Qxd3 {[%clk 0:02:49.2]} 11... Ne4 {[%clk 0:02:39.3]} 12. Nbd2 {[%clk 0:02:47.6]}
12... f5 {[%clk 0:02:33]} 13. Ng5 {[%clk 0:02:22]} 13... Nxg5 {[%clk 0:02:20.9]}
14. Bxg5 {[%clk 0:02:22]} 14... Qd6 {[%clk 0:02:20.1]} 15. Nf3 {[%clk
0:02:17.8]} 15... Rae8 {[%clk 0:02:08.4]} 16. Rad1 {[%clk 0:02:14.4]} 16... Bf6
{[%clk 0:02:01.8]} 17. Bh6 {[%clk 0:02:12.1]} 17... Rf7 {[%clk 0:02:00.6]} 18.
Ng5 {[%clk 0:02:09.5]} 18... Bxg5 {[%clk 0:01:58.8]} 19. Bxg5 {[%clk 0:02:10.4]}
19... e6 {[%clk 0:01:58]} 20. Qf3 {[%clk 0:02:02.3]} 20... b5 {[%clk 0:01:49.4]}
21. Bf4 {[%clk 0:02:02.7]} 21... Qd7 {[%clk 0:01:47.9]} 22. a3 {[%clk
0:01:57.5]} 22... a5 {[%clk 0:01:47.1]} 23. h4 {[%clk 0:01:51.8]} 23... a4
{[%clk 0:01:45.4]} 24. g3 {[%clk 0:01:48.5]} 24... Na5 {[%clk 0:01:43.9]} 25.
Be5 {[%clk 0:01:41.6]} 25... Nc4 {[%clk 0:01:42.6]} 26. Re2 {[%clk 0:01:42.3]}
26... Nxe5 {[%clk 0:01:32.3]} 27. Rxe5 {[%clk 0:01:43.2]} 27... Qc7 {[%clk
0:01:31.2]} 28. Kg2 {[%clk 0:01:42.2]} 28... Qc4 {[%clk 0:01:30.4]} 29. Qf4
{[%clk 0:01:34.3]} 29... Qb3 {[%clk 0:01:28.9]} 30. Rd2 {[%clk 0:01:34.9]} 30...
Rfe7 {[%clk 0:01:26.5]} 31. h5 {[%clk 0:01:34]} 31... Rg7 {[%clk 0:01:24.7]} 32.
Qg5 {[%clk 0:01:26.8]} 32... Qc4 {[%clk 0:01:21.4]} 33. Rde2 {[%clk 0:01:25.7]}
33... Qc6 {[%clk 0:01:20.6]} 34. Re1 {[%clk 0:01:23.7]} 34... Qd7 {[%clk
0:01:13.5]} 35. hxg6 {[%clk 0:01:12]} 35... hxg6 {[%clk 0:01:04.9]} 36. Qf6
{[%clk 0:01:12.2]} 36... Qf7 {[%clk 0:01:04.7]} 37. Qg5 {[%clk 0:01:03.2]} 37...
Rh7 {[%clk 0:01:01.3]} 38. Qe3 {[%clk 0:00:58.3]} 38... f4 {[%clk 0:00:32.9]}
39. Qxf4 {[%clk 0:00:58.4]} 39... Qxf4 {[%clk 0:00:32.3]} 40. gxf4 {[%clk
0:00:59.3]} 40... Rhe7 {[%clk 0:00:32]} 41. Kf3 {[%clk 0:00:56.7]} 41... Kf7
{[%clk 0:00:32.2]} 42. Rh1 {[%clk 0:00:53.1]} 42... Kf6 {[%clk 0:00:31.6]} 43.
Kg4 {[%clk 0:00:47.4]} 43... Rg7 {[%clk 0:00:26.3]} 44. Rh6 {[%clk 0:00:45.4]}
44... Kf7 {[%clk 0:00:17.1]} 45. Kg5 {[%clk 0:00:43.7]} 45... Re7 {[%clk
0:00:16.3]} 46. Re3 {[%clk 0:00:43.8]} 46... Re8 {[%clk 0:00:16.3]} 47. Reh3
{[%clk 0:00:44.4]} 47... Reg8 {[%clk 0:00:14.9]} 48. Rh8 {[%clk 0:00:39.9]}
48... Rf8 {[%clk 0:00:06.1]} 49. Rxf8+ {[%clk 0:00:39.6]} 49... Kxf8 {[%clk
0:00:07]} 50. Rh8+ {[%clk 0:00:39.8]} 50... Ke7 {[%clk 0:00:07.4]} 51. Rb8
{[%clk 0:00:39.5]} 51... Kd6 {[%clk 0:00:05.7]} 52. Rxb5 {[%clk 0:00:40.1]}
52... Rf7 {[%clk 0:00:05.3]} 53. Rb6+ {[%clk 0:00:36.9]} 53... Kc7 {[%clk
0:00:02.9]} 54. Rxe6 {[%clk 0:00:36.7]} 54... Rf5+ {[%clk 0:00:03.8]} 55. Kg4
{[%clk 0:00:36.1]} 55... Kd7 {[%clk 0:00:03.5]} 56. Re5 {[%clk 0:00:35.3]} 56...
Rf8 {[%clk 0:00:04.4]} 57. Rxd5+ {[%clk 0:00:35.4]} 57... Ke6 {[%clk 0:00:04.1]}
58. Re5+ {[%clk 0:00:34.1]} 58... Kd6 {[%clk 0:00:05]} 59. Rb5 {[%clk
0:00:34.6]} 59... Rc8 {[%clk 0:00:05]} 60. Rb6+ {[%clk 0:00:32.5]} 60... Kd5
{[%clk 0:00:04.4]} 61. Rb5+ {[%clk 0:00:32.1]} 61... Kc4 {[%clk 0:00:04.4]} 62.
Rc5+ {[%clk 0:00:32.2]} 62... Kd3 {[%clk 0:00:05.3]} 63. Rxc8 {[%clk 0:00:32.2]}
63... Kc2 {[%clk 0:00:05.8]} 64. Rb8 {[%clk 0:00:32.9]} 64... Kd3 {[%clk
0:00:05.3]} 65. d5 {[%clk 0:00:33.8]} 65... Ke2 {[%clk 0:00:05.3]} 66. d6 {[%clk
0:00:34.7]} 66... Kxf2 {[%clk 0:00:06.2]} 67. Kg5 {[%clk 0:00:35.1]} 67... Ke2
{[%clk 0:00:07.1]} 68. d7 {[%clk 0:00:35.7]} 68... Kd3 {[%clk 0:00:08]} 69.
d8=Q+ {[%clk 0:00:36.1]} 69... Kc2 {[%clk 0:00:08.9]} 70. c4 {[%clk 0:00:35.6]}
70... Kb1 {[%clk 0:00:08.6]} 71. Qd2 {[%clk 0:00:32.3]} 71... Ka2 {[%clk
0:00:09.5]} 72. c5 {[%clk 0:00:32.3]} 72... Ka1 {[%clk 0:00:09.2]} 73. c6 {[%clk
0:00:29.9]} 73... Ka2 {[%clk 0:00:10.1]} 74. c7 {[%clk 0:00:29.9]} 74... Ka1
{[%clk 0:00:11]} 75. c8=Q {[%clk 0:00:30.3]} 75... Ka2 {[%clk 0:00:10.9]} 76.
Qc4+ {[%clk 0:00:27.2]} 76... Ka1 {[%clk 0:00:11.8]} 77. Qf1+ {[%clk 0:00:27.2]}
77... Ka2 {[%clk 0:00:10.9]} 78. b4+ {[%clk 0:00:27.1]} 78... Kb3 {[%clk
0:00:09.8]} 79. Qfd3# {[%clk 0:00:26.4]} 1-0